bitfinex/quotes_ETHUSD_20230111
["timestamp","ask_amount","ask_price","bid_price","bid_amount"]
[1673438524876,1.74860758,1335.8,1335.6,23.56061692]
[1673438525188,1.74860758,1335.8,1335.6,23.63461692]
[1673438525189,1.68260758,1335.8,1335.6,23.63461692]
[1673438525346,1.68260758,1335.8,1335.6,16.14734692]
[1673438526023,4.18260758,1335.8,1335.6,1.17280692]
[1673438526200,4.18260758,1335.8,1335.6,2.31475843]
[1673438528316,2.5,1335.8,1335.6,2.31475843]
[1673438529861,2.0,1335.8,1335.6,2.31475843]
[1673438532803,10.29066064,1335.8,1335.6,1.09880692]
[1673438533041,0.23,1335.7,1335.6,1.09880692]
[1673438533264,7.71671,1335.7,1335.6,1.09880692]
[1673438534224,0.23,1335.7,1335.6,1.09880692]
[1673438534963,15.20342,1335.7,1335.6,1.09880692]
[1673438536162,15.20542,1335.7,1335.6,1.09880692]
[1673438536379,15.20342,1335.7,1335.6,1.09880692]
[1673438538005,0.23,1335.7,1335.6,1.09880692]
[1673438538583,14.23,1335.7,1335.6,1.09880692]
[1673438540520,46.66539822,1335.7,1335.6,1.09880692]
[1673438540681,43.33970684,1335.7,1335.6,1.09880692]
[1673438541115,45.02231442,1335.7,1335.6,1.09880692]
[1673438541366,43.33970684,1335.7,1335.6,1.09880692]
[1673438541966,45.02231442,1335.7,1335.6,1.09880692]
[1673438542720,37.53560442,1335.7,1335.6,1.09880692]
[1673438544205,45.02231442,1335.7,1335.6,1.09880692]
[1673438544423,52.50902442,1335.7,1335.6,1.09880692]
[1673438544748,45.02231442,1335.7,1335.6,1.09880692]
[1673438546140,45.58401442,1335.7,1335.6,1.09880692]
[1673438546315,45.02231442,1335.7,1335.6,1.09880692]
[1673438546817,47.26302818,1335.7,1335.6,1.09880692]
[1673438547395,47.26302818,1335.7,1335.6,1.09514644]
[1673438547540,54.74973818,1335.7,1335.6,1.09514644]
[1673438548847,54.74734647,1335.7,1335.6,1.09514644]
[1673438552269,53.06473889,1335.7,1335.6,1.09514644]
[1673438553002,54.74173889,1335.7,1335.6,1.09514644]
[1673438554102,56.42254613,1335.7,1335.6,1.09514644]
[1673438554270,54.74173889,1335.7,1335.6,1.09514644]
[1673438555129,56.42290859,1335.7,1335.6,1.09514644]
[1673438555522,50.57728239,1335.7,1335.6,1.09514644]
[1673438556412,48.33656863,1335.7,1335.6,1.09514644]
[1673438556792,50.57728239,1335.7,1335.6,1.09514644]
[1673438557635,46.65956863,1335.7,1335.6,1.09514644]
[1673438558815,48.90028239,1335.7,1335.6,1.09514644]
[1673438559028,46.65956863,1335.7,1335.6,1.09514644]
[1673438559260,48.90028239,1335.7,1335.6,1.09514644]
[1673438559629,55.04949897,1335.7,1335.6,1.09514644]
[1673438559837,55.05033189,1335.7,1335.6,1.09514644]
[1673438560421,52.80961813,1335.7,1335.6,1.09514644]
[1673438562983,55.05033189,1335.7,1335.6,1.09514644]
[1673438563462,52.80961813,1335.7,1335.6,1.09514644]
[1673438563981,55.05033189,1335.7,1335.6,1.09514644]
[1673438564362,55.05033189,1335.7,1335.4,10.8267292]
[1673438564575,10.79066064,1335.6,1335.4,13.16513348]
[1673438564932,0.23,1335.5,1335.4,13.16513348]
[1673438565149,30.81946064,1335.6,1335.5,0.23]
[1673438565366,30.75346064,1335.6,1335.5,0.23]
[1673438567377,30.98346064,1335.6,1335.5,0.23]
[1673438567590,4.723,1335.6,1335.5,0.23]
[1673438570425,0.23,1335.6,1335.5,1.01727492]
[1673438571036,0.23,1335.6,1335.5,2.87530857]
[1673438571900,20.24100262,1335.7,1335.5,10.36313857]
[1673438572057,20.17500262,1335.7,1335.5,8.57910492]
[1673438572266,20.17500262,1335.7,1335.5,1.09127492]
[1673438572615,20.17500262,1335.7,1335.5,3.98821315]
[1673438572825,20.17500262,1335.7,1335.5,2.13027291]
[1673438573423,20.17500262,1335.7,1335.5,1.01727492]
[1673438574276,29.90252638,1335.7,1335.5,0.23]
[1673438574493,44.87604638,1335.7,1335.5,0.23]
[1673438575455,35.16447326,1335.6,1335.5,0.23]
[1673438575630,44.67507232,1335.6,1335.5,0.23]
[1673438575839,46.36043689,1335.6,1335.5,0.23]
[1673438576099,53.22456035,1335.6,1335.5,0.23]
[1673438576278,56.22456035,1335.6,1335.5,0.23]
[1673438576721,52.30503587,1335.6,1335.5,0.23]
[1673438577979,55.67284659,1335.6,1335.5,0.23]
[1673438579735,64.46315509,1335.5,1335.4,0.0804292]
[1673438580098,66.70449189,1335.5,1335.4,0.0804292]
[1673438580660,63.34676741,1335.5,1335.4,0.0804292]
[1673438581050,60.5435721,1335.5,1335.4,0.0804292]
[1673438582927,58.8545721,1335.5,1335.4,0.0804292]
[1673438583142,60.5305721,1335.5,1335.4,0.0804292]
[1673438584519,48.30589438,1335.5,1335.4,0.0804292]
[1673438584733,33.33023438,1335.5,1335.4,0.0804292]
[1673438585670,40.81806438,1335.5,1335.4,0.0804292]
[1673438586425,31.6497453,1335.5,1335.4,0.0804292]
[1673438587180,36.46866,1335.5,1335.4,0.0804292]
[1673438587993,43.95649,1335.5,1335.4,0.0804292]
[1673438588222,36.46866,1335.5,1335.4,0.0804292]
[1673438588703,44.18649,1335.5,1335.4,0.0804292]
[1673438589139,36.69866,1335.5,1335.4,0.0804292]
[1673438589597,38.37914908,1335.5,1335.4,0.0804292]
[1673438590184,36.69866,1335.5,1335.4,0.0804292]
[1673438593474,44.18649,1335.5,1335.4,0.0804292]
[1673438594314,36.69866,1335.5,1335.4,0.0804292]
[1673438594509,44.18649,1335.5,1335.4,0.0804292]
[1673438595529,36.69866,1335.5,1335.4,0.0804292]
[1673438597225,44.18649,1335.5,1335.4,0.0804292]
[1673438597740,45.86697908,1335.5,1335.4,0.0804292]
[1673438598312,44.18649,1335.5,1335.4,0.0804292]
[1673438598908,56.94121011,1335.5,1335.4,0.0804292]
[1673438599726,57.50301011,1335.5,1335.4,0.0804292]
[1673438600571,61.42253459,1335.5,1335.4,0.0804292]
[1673438600777,61.98338231,1335.5,1335.4,0.0804292]
[1673438601232,63.66323598,1335.5,1335.4,0.0804292]
[1673438601883,63.66323598,1335.5,1335.4,0.07781383]
[1673438602497,64.95261917,1335.5,1335.4,0.07781383]
[1673438602736,65.51447768,1335.5,1335.4,0.07781383]
[1673438602892,67.7540993,1335.5,1335.4,0.07781383]
[1673438606398,67.00401157,1335.5,1335.4,0.07781383]
[1673438606607,65.00019133,1335.5,1335.4,0.07781383]
[1673438607678,64.20081626,1335.5,1335.4,0.07781383]
[1673438607837,76.03768551,1335.5,1335.2,0.7441772]
[1673438608029,27.5471789,1335.3,1335.2,0.7441772]
[1673438608396,64.37306918,1335.3,1335.2,0.7441772]
[1673438608616,63.25536533,1335.3,1335.2,0.7441772]
[1673438608761,63.25536533,1335.3,1335.2,7.2e-06]
[1673438608977,4.493,1335.1,1335.0,0.13857352]
[1673438609187,52.48094064,1335.1,1335.0,0.13857352]
[1673438609519,53.53950644,1335.1,1335.0,0.13857352]
[1673438614340,52.42424808,1335.1,1335.0,0.13857352]
[1673438614667,53.54433505,1335.1,1335.0,0.13857352]
[1673438615821,52.42424808,1335.1,1335.0,0.13857352]
[1673438616285,51.36568228,1335.1,1335.0,0.13857352]
[1673438616811,43.87561228,1335.1,1335.0,0.13857352]
[1673438618449,47.06761228,1335.1,1335.0,0.13857352]
[1673438618654,47.06761228,1335.1,1335.0,0.08857352]
[1673438624808,39.57754228,1335.1,1335.0,0.08857352]
[1673438624954,47.06761228,1335.1,1335.0,0.08857352]
[1673438627629,47.06761228,1335.1,1335.0,0.03857352]
[1673438628157,47.06761228,1335.1,1334.9,0.13237127]
[1673438628472,15.21126,1335.0,1334.9,0.13237127]
[1673438630895,13.22855515,1335.0,1334.9,0.13237127]
[1673438631142,13.22855515,1335.0,1334.9,1.09829534]
[1673438631430,13.22855515,1335.0,1334.9,2.95703642]
[1673438631604,5.73792515,1335.0,1334.9,2.95703642]
[1673438634746,13.22855515,1335.0,1334.9,2.95703642]
[1673438635214,13.22855515,1335.0,1334.9,1.09829534]
[1673438635592,13.22855515,1335.0,1334.9,2.95708507]
[1673438637918,5.73792515,1335.0,1334.9,2.95708507]
[1673438638328,40.53405925,1335.1,1334.9,2.95708507]
[1673438638542,39.34797228,1335.1,1334.9,1.09829534]
[1673438639427,47.95854925,1335.1,1334.9,1.09829534]
[1673438639617,47.95854925,1335.1,1334.9,2.97015481]
[1673438639800,47.95854925,1335.1,1334.9,1.11142067]
[1673438641061,47.95854925,1335.1,1334.9,2.97015556]
[1673438641270,47.95854925,1335.1,1334.9,1.11142067]
[1673438641484,47.95854925,1335.1,1334.9,4.08316102]
[1673438641703,47.95854925,1335.1,1334.9,2.22441866]
[1673438643536,47.95854925,1335.1,1335.0,1.85872581]
[1673438643830,48.18854925,1335.1,1335.0,1.85872581]
[1673438645364,7.91982861,1335.1,1335.0,2.17784785]
[1673438645578,6.56974164,1335.1,1335.0,2.17784785]
[1673438645825,3.192,1335.1,1335.0,19.95010584]
[1673438646033,3.192,1335.1,1335.0,15.82219144]
[1673438646252,3.192,1335.1,1335.0,8.40556144]
[1673438648877,3.192,1335.1,1335.0,6.73184584]
[1673438649403,3.192,1335.1,1335.0,5.05384584]
[1673438650786,1.20953107,1335.1,1335.0,5.05384584]
[1673438650955,8.69960107,1335.1,1335.0,5.05384584]
[1673438651630,8.69960107,1335.1,1335.0,3.94084785]
[1673438651836,8.69960107,1335.1,1335.0,2.17784785]
[1673438652425,16.18967107,1335.1,1334.9,0.2194966]
[1673438652750,26.47932892,1335.1,1334.9,0.1454966]
[1673438652966,30.97232892,1335.1,1334.9,0.1454966]
[1673438658002,23.48225892,1335.1,1334.9,0.1454966]
[1673438658409,21.80275804,1335.1,1334.9,0.1454966]
[1673438661082,29.85472804,1335.1,1334.9,0.1454966]
[1673438662408,22.36465804,1335.1,1334.9,0.1454966]
[1673438663292,24.04415892,1335.1,1334.9,0.1454966]
[1673438663666,22.36465804,1335.1,1334.9,0.1454966]
[1673438664448,29.85472804,1335.1,1334.9,0.1454966]
[1673438665518,22.36465804,1335.1,1334.9,0.1454966]
[1673438666344,29.85472804,1335.1,1334.9,0.1454966]
[1673438667918,22.36465804,1335.1,1334.9,0.1454966]
[1673438668600,22.36611877,1335.1,1334.9,0.1454966]
[1673438668810,21.24457107,1335.1,1334.9,0.1454966]
[1673438669019,22.36612192,1335.1,1334.9,0.1454966]
[1673438669230,22.36617088,1335.1,1334.9,3.11723417]
[1673438669469,21.24457107,1335.1,1334.9,0.1454966]
[1673438669809,0.562,1335.0,1334.9,0.1454966]
[1673438670021,15.54326,1335.0,1334.9,3.08226303]
[1673438670330,8.05263,1335.0,1334.9,3.08226303]
[1673438670490,8.05263,1335.0,1334.9,1.99112974]
[1673438670702,15.54326,1335.0,1334.9,1.99112974]
[1673438670912,15.54326,1335.0,1334.9,1.98884526]
[1673438671480,8.05263,1335.0,1334.9,1.98884526]
[1673438673381,15.54326,1335.0,1334.9,1.98884526]
[1673438673746,8.05263,1335.0,1334.9,1.98884526]
[1673438674739,15.54326,1335.0,1334.9,1.98884526]
[1673438675324,8.05263,1335.0,1334.9,1.98884526]
[1673438677684,15.54326,1335.0,1334.9,1.98884526]
[1673438677894,23.03389,1335.0,1334.9,1.98884526]
[1673438678203,14.98126,1335.0,1334.9,1.98884526]
[1673438683002,7.49063,1335.0,1334.9,1.98884526]
[1673438683636,22.43259205,1335.1,1334.9,1.98884526]
[1673438683863,7.49063,1335.0,1334.9,0.13008679]
[1673438684057,7.49063,1335.0,1334.9,1.98885923]
[1673438686496,7.85635155,1335.0,1334.9,1.98885923]
[1673438688042,7.85635155,1335.0,1334.9,3.10185722]
[1673438691235,8.97791253,1335.0,1334.9,3.10185722]
[1673438691446,7.85635155,1335.0,1334.9,3.10185722]
[1673438691658,8.97900536,1335.0,1334.9,3.10185722]
[1673438691821,8.97900315,1335.0,1334.9,3.10185722]
[1673438692029,8.97900334,1335.0,1334.9,3.10185722]
[1673438692395,7.85635155,1335.0,1334.9,3.10185722]
[1673438694692,8.97899319,1335.0,1334.9,3.10185722]
[1673438695021,15.34698155,1335.0,1334.9,3.10185722]
[1673438695177,7.85635155,1335.0,1334.9,3.10185722]
[1673438695388,8.97915941,1335.0,1334.9,3.10185722]
[1673438695640,8.9791902,1335.0,1334.9,3.10185722]
[1673438695824,8.97919135,1335.0,1334.9,3.10185722]
[1673438696185,8.97917371,1335.0,1334.9,3.10185722]
[1673438696335,7.85635155,1335.0,1334.9,3.10185722]
[1673438697084,8.97916618,1335.0,1334.9,3.10185722]
[1673438697284,8.97917978,1335.0,1334.9,3.10185722]
[1673438697494,8.97918036,1335.0,1334.9,3.10185722]
[1673438697736,7.85635155,1335.0,1334.9,3.10185722]
[1673438697915,8.97917572,1335.0,1334.9,3.10185722]
[1673438698125,7.85635155,1335.0,1334.9,3.10185722]
[1673438698355,15.34698155,1335.0,1334.9,3.10185722]
[1673438698558,16.46980043,1335.0,1334.9,3.10185722]
[1673438698765,15.34698155,1335.0,1334.9,3.10185722]
[1673438698980,16.4698006,1335.0,1334.9,3.10185722]
[1673438699240,15.34698155,1335.0,1334.9,3.10185722]
[1673438699453,8.97915153,1335.0,1334.9,3.10185722]
[1673438699760,7.85635155,1335.0,1334.9,3.10185722]
[1673438700136,8.979144,1335.0,1334.9,3.10185722]
[1673438700351,1.48851869,1335.0,1334.9,3.10185722]
[1673438700605,0.36572155,1335.0,1334.9,4.77557282]
[1673438701148,0.36572155,1335.0,1334.9,3.10185722]
[1673438702100,0.36572155,1335.0,1334.9,4.77557282]
[1673438707648,0.36572155,1335.0,1334.9,1.98885923]
[1673438707649,7.85635155,1335.0,1334.9,1.98885923]
[1673438707838,15.34698155,1335.0,1334.9,1.98885923]
[1673438708065,8.97908106,1335.0,1334.9,1.98885923]
[1673438708276,7.85635155,1335.0,1334.9,1.98885923]
[1673438708797,8.97907545,1335.0,1334.9,1.98885923]
[1673438709009,7.85635155,1335.0,1334.9,1.98885923]
[1673438709180,8.97899964,1335.0,1334.9,1.98885923]
[1673438709397,7.85635155,1335.0,1334.9,1.98885923]
[1673438710132,8.97897824,1335.0,1334.9,1.98885923]
[1673438710344,7.85635155,1335.0,1334.9,1.98885923]
[1673438710808,8.97897852,1335.0,1334.9,1.98885923]
[1673438711024,7.85635155,1335.0,1334.9,1.98885923]
[1673438711179,8.97897594,1335.0,1334.9,1.98885923]
[1673438711389,8.97892141,1335.0,1334.9,1.98885923]
[1673438711615,7.85635155,1335.0,1334.9,1.98885923]
[1673438711823,8.97892369,1335.0,1334.9,1.98885923]
[1673438712079,7.85635155,1335.0,1334.9,1.98885923]
[1673438712448,8.97891802,1335.0,1334.9,1.98885923]
[1673438712659,15.34698155,1335.0,1334.9,1.98885923]
[1673438712868,16.4695466,1335.0,1334.9,1.98885923]
[1673438713118,15.34698155,1335.0,1334.9,1.98885923]
[1673438713353,7.85635155,1335.0,1334.9,1.98885923]
[1673438713515,8.97886179,1335.0,1334.9,1.98885923]
[1673438713704,7.85635155,1335.0,1334.9,1.98885923]
[1673438713912,8.97886176,1335.0,1334.9,1.98885923]
[1673438714181,8.97886181,1335.0,1334.9,1.98885923]
[1673438714371,7.85635155,1335.0,1334.9,1.98885923]
[1673438714576,8.97886161,1335.0,1334.9,1.98885923]
[1673438714751,9.54042233,1335.0,1334.9,1.98885923]
[1673438714966,17.03068473,1335.0,1334.9,0.13008679]
[1673438715211,18.15283121,1335.0,1334.9,0.13008679]
[1673438715422,10.66220121,1335.0,1334.9,0.13008679]
[1673438716274,9.54005473,1335.0,1334.9,0.13008679]
[1673438716594,35.52391594,1335.0,1334.9,0.13008679]
[1673438716902,28.03328594,1335.0,1334.9,0.13008679]
[1673438717081,28.03310363,1335.0,1334.9,0.13008679]
[1673438717902,35.52373363,1335.0,1334.9,0.13008679]
[1673438718393,39.32139427,1335.0,1334.9,0.13008679]
[1673438718551,31.83076427,1335.0,1334.9,0.13008679]
[1673438718769,38.19929302,1335.0,1334.9,0.13008679]
[1673438720119,39.32126977,1335.0,1334.9,0.13008679]
[1673438722115,31.83063977,1335.0,1334.9,0.13008679]
[1673438722761,30.14693659,1335.0,1334.9,0.13008679]
[1673438722973,37.63756659,1335.0,1334.9,0.13008679]
[1673438724228,39.32126977,1335.0,1334.9,0.13008679]
[1673438725329,37.63756659,1335.0,1334.9,0.13008679]
[1673438725845,39.32126977,1335.0,1334.9,0.13008679]
[1673438725994,31.83063977,1335.0,1334.9,0.13008679]
[1673438726457,24.98961894,1335.0,1334.9,0.13008679]
[1673438726649,23.86764219,1335.0,1334.9,0.13008679]
[1673438726841,17.49878343,1335.0,1334.9,0.13008679]
[1673438727053,16.37701219,1335.0,1334.9,0.13008679]
[1673438727278,10.00822875,1335.0,1334.9,1.98894625]
[1673438727490,16.37701219,1335.0,1334.9,1.98894625]
[1673438727687,8.88638219,1335.0,1334.9,1.98892836]
[1673438728258,16.37701219,1335.0,1334.9,1.98892836]
[1673438728503,8.88638219,1335.0,1334.9,1.98892836]
[1673438728625,16.37701219,1335.0,1334.9,1.98892836]
[1673438729077,23.86764219,1335.0,1334.9,0.13008679]
[1673438729291,24.9895241,1335.0,1334.9,0.13008679]
[1673438729502,23.86764219,1335.0,1334.9,0.13008679]
[1673438729899,24.98953925,1335.0,1334.9,0.13008679]
[1673438730113,23.86764219,1335.0,1334.9,0.13008679]
[1673438730628,24.98954854,1335.0,1334.9,0.13008679]
[1673438730830,23.86764219,1335.0,1334.9,0.13008679]
[1673438731068,24.98957408,1335.0,1334.9,0.13008679]
[1673438731291,23.86764219,1335.0,1334.9,0.13008679]
[1673438731508,17.49891095,1335.0,1334.9,0.13008679]
[1673438731718,17.49891136,1335.0,1334.9,0.13008679]
[1673438731922,17.4989217,1335.0,1334.9,0.13008679]
[1673438732137,5.08872155,1335.0,1334.9,1.98894706]
[1673438732350,4.85872155,1335.0,1334.9,0.13008679]
[1673438732562,5.98065453,1335.0,1334.9,1.9889423]
[1673438732718,0.36572155,1335.0,1334.9,9.4801323]
[1673438733086,0.36572155,1335.0,1334.9,2.0629423]
[1673438733262,0.36572155,1335.0,1334.9,1.9889423]
[1673438734416,0.36572155,1335.0,1334.9,10.59313029]
[1673438734791,1.84455674,1335.1,1334.9,29.61346671]
[1673438734959,1.84455674,1335.1,1335.0,2.98125596]
[1673438734960,1.77855674,1335.1,1335.0,2.98125596]
[1673438735185,1.77855674,1335.1,1335.0,1.85885551]
[1673438740661,1.77855674,1335.1,1335.0,1.82885551]
[1673438740962,1.77855674,1335.1,1335.0,2.98588288]
[1673438741187,1.77855674,1335.1,1335.0,1.15702737]
[1673438741698,16.75869674,1335.1,1334.9,2.47904321]
[1673438742023,16.75869674,1335.1,1334.9,2.40504321]
[1673438742347,29.86366297,1335.1,1334.9,0.13008679]
[1673438742542,1.77855674,1335.1,1334.9,0.13008679]
[1673438742755,1.77855674,1335.1,1334.9,1.25248724]
[1673438743809,1.77855674,1335.1,1334.9,0.13008679]
[1673438743810,6.27155674,1335.1,1334.9,0.13008679]
[1673438744378,13.76163674,1335.1,1334.9,0.13008679]
[1673438744589,6.27155674,1335.1,1334.9,0.13008679]
[1673438744846,22.37375297,1335.1,1334.9,0.13008679]
[1673438745245,29.86390297,1335.1,1334.9,0.13008679]
[1673438745536,35.02145503,1335.1,1334.9,0.13008679]
[1673438746210,20.04115503,1335.1,1334.9,0.13008679]
[1673438746425,27.53122503,1335.1,1334.9,0.13008679]
[1673438747434,20.04107503,1335.1,1334.9,0.13008679]
[1673438748571,27.53114503,1335.1,1334.9,0.13008679]
[1673438748742,31.32880567,1335.1,1334.9,0.13008679]
[1673438748920,4.364,1335.0,1334.9,0.13008679]
[1673438749286,19.34526,1335.0,1334.9,0.13008679]
[1673438749662,16.84526,1335.0,1334.9,0.13008679]
[1673438749875,9.35463,1335.0,1334.9,0.13008679]
[1673438750948,16.84526,1335.0,1334.9,0.13008679]
[1673438752308,24.33589,1335.0,1334.9,0.13008679]
[1673438752518,31.10121212,1335.0,1334.9,0.13008679]
[1673438752734,39.39187276,1335.0,1334.9,0.13008679]
[1673438754823,39.95387276,1335.0,1334.9,0.13008679]
[1673438756531,34.31044687,1335.0,1334.9,0.13008679]
[1673438756741,11.83855687,1335.0,1334.9,0.13008679]
[1673438756959,10.71666064,1335.0,1334.9,0.13008679]
[1673438757324,18.20729064,1335.0,1334.9,0.13008679]
[1673438758935,25.69792064,1335.0,1334.9,0.13008679]
[1673438760769,25.69792064,1335.0,1334.9,0.12641511]
[1673438761981,25.13592064,1335.0,1334.9,0.12641511]
[1673438762621,4.723,1335.0,1334.9,1.98523344]
[1673438762868,4.493,1335.0,1334.9,1.98523344]
[1673438764429,4.493,1335.0,1334.9,3.34426266]
[1673438765549,35.31782471,1335.1,1334.9,3.34426266]
[1673438765792,27.76131471,1335.1,1334.9,0.12641511]
[1673438767065,35.25170471,1335.1,1334.9,0.12641511]
[1673438767442,36.93540789,1335.1,1334.9,0.12641511]
[1673438768282,52.11255489,1335.1,1334.9,0.12641511]
[1673438768499,17.96715623,1335.0,1334.9,0.12641511]
[1673438768745,22.97595008,1335.0,1334.9,0.12641511]
[1673438769150,21.85405385,1335.0,1334.9,0.12641511]
[1673438769446,14.36342385,1335.0,1334.9,0.12641511]
[1673438770407,15.48532008,1335.0,1334.9,0.12641511]
[1673438771040,14.36342385,1335.0,1334.9,0.12641511]
[1673438771460,21.85405385,1335.0,1334.9,0.12641511]
[1673438772179,22.97595008,1335.0,1334.9,0.12641511]
[1673438776292,27.46895008,1335.0,1334.9,0.12641511]
[1673438776532,34.95958008,1335.0,1334.9,0.12641511]
[1673438780899,36.64328326,1335.0,1334.9,0.12641511]
[1673438789048,35.52138703,1335.0,1334.9,0.12641511]
[1673438791415,39.31904767,1335.0,1334.9,0.12641511]
[1673438792043,39.31904767,1335.0,1334.9,0.12398478]
[1673438792044,46.56020886,1335.0,1334.9,0.12398478]
[1673438792290,51.24920886,1335.0,1334.9,0.12398478]
[1673438794093,46.80620479,1335.0,1334.9,0.12398478]
[1673438794257,45.12591092,1335.0,1334.9,0.12398478]
[1673438794467,38.48311707,1335.0,1334.9,0.12398478]
[1673438794676,19.37944941,1335.0,1334.9,0.12398478]
[1673438796250,17.69574328,1335.0,1334.9,0.12398478]
[1673438796725,5.84545264,1335.0,1334.9,1.9828226]
[1673438796936,4.723,1335.0,1334.9,1.9828226]
[1673438797246,4.723,1335.0,1334.9,3.99230467]
[1673438797409,4.723,1335.0,1334.9,2.86990422]
[1673438798038,4.723,1335.0,1334.9,1.9828226]
[1673438799240,5.84529292,1335.0,1334.9,1.9828226]
[1673438799456,5.84529237,1335.0,1334.9,1.9828226]
[1673438799631,4.723,1335.0,1334.9,1.9828226]
[1673438799827,5.84529291,1335.0,1334.9,1.9828226]
[1673438800032,5.84529669,1335.0,1334.9,2.31362185]
[1673438800330,4.723,1335.0,1334.9,2.31362185]
[1673438800507,5.8453199,1335.0,1334.9,2.31362185]
[1673438800729,4.723,1335.0,1334.9,2.31362185]
[1673438801419,5.84534738,1335.0,1334.9,2.31362185]
[1673438801615,4.723,1335.0,1334.9,2.31362185]
[1673438802035,5.84538913,1335.0,1334.9,2.31362185]
[1673438802294,4.723,1335.0,1334.9,2.31362185]
[1673438802680,5.8454593,1335.0,1334.9,2.31362185]
[1673438802885,4.723,1335.0,1334.9,2.31362185]
[1673438803092,5.84546063,1335.0,1334.9,2.31362185]
[1673438803331,5.84546133,1335.0,1334.9,2.31362185]
[1673438803539,4.723,1335.0,1334.9,2.31362185]
[1673438804048,5.84547566,1335.0,1334.9,2.31362185]
[1673438804261,4.723,1335.0,1334.9,2.31362185]
[1673438804711,0.23,1335.0,1334.9,2.31362185]
[1673438804900,6.33758867,1335.1,1334.9,2.31362185]
[1673438805112,6.26828826,1335.1,1334.9,0.45478403]
[1673438805337,13.75851826,1335.1,1334.9,0.45478403]
[1673438805711,15.44222439,1335.1,1334.9,0.45478403]
[1673438805924,13.75851826,1335.1,1334.9,0.45478403]
[1673438806577,21.24874826,1335.1,1334.9,0.45478403]
[1673438806916,22.93245439,1335.1,1334.9,0.45478403]
[1673438808480,21.24874826,1335.1,1334.9,0.45478403]
[1673438811115,21.24874949,1335.1,1334.9,0.45478403]
[1673438811426,21.24874949,1335.1,1334.9,0.12398478]
[1673438813538,22.93245562,1335.1,1334.9,0.12398478]
[1673438813769,3.12224763,1335.0,1334.9,0.12398478]
[1673438813902,9.49063,1335.0,1334.9,0.12398478]
[1673438814113,10.61280089,1335.0,1334.9,0.12398478]
[1673438814371,9.49063,1335.0,1334.9,0.12398478]
[1673438814763,10.61281194,1335.0,1334.9,0.12398478]
[1673438814962,9.49063,1335.0,1334.9,0.12398478]
[1673438815958,10.61276296,1335.0,1334.9,0.12398478]
[1673438816128,8.61278286,1335.0,1334.9,0.12398478]
[1673438816337,7.49063,1335.0,1334.9,0.12398478]
[1673438816761,11.1127684,1335.0,1334.9,0.12398478]
[1673438816991,11.11277267,1335.0,1334.9,0.12398478]
[1673438817205,7.49063,1335.0,1334.9,0.12398478]
[1673438817375,7.49063,1335.0,1334.9,1.98282006]
[1673438817586,7.49263,1335.0,1334.9,1.98282006]
[1673438817796,7.49063,1335.0,1334.9,1.98282006]
[1673438818048,7.49063,1335.0,1334.9,0.12398478]
[1673438818278,7.49063,1335.0,1334.9,1.98282437]
[1673438818575,7.49063,1335.0,1334.9,1.98283666]
[1673438818792,8.61276681,1335.0,1334.9,0.12398478]
[1673438818951,7.49063,1335.0,1334.9,0.12398478]
[1673438819161,7.49063,1335.0,1334.9,1.9828545]
[1673438819385,22.99825089,1335.1,1334.9,1.98283348]
[1673438819386,22.99824244,1335.1,1334.9,1.98283348]
[1673438819615,37.60424643,1335.1,1334.9,0.12398478]
[1673438819825,22.93224244,1335.1,1334.9,0.12398478]
[1673438822449,21.24853631,1335.1,1334.9,0.12398478]
[1673438822783,22.93224244,1335.1,1334.9,0.12398478]
[1673438824491,22.93224244,1335.1,1334.9,3.10508421]
[1673438824492,12.63616807,1335.1,1334.9,3.10508421]
[1673438824715,3.541,1335.0,1334.9,2.95649573]
[1673438824909,1.55847629,1335.0,1334.9,31.70012399]
[1673438825122,1.55847629,1335.0,1334.9,34.5623829]
[1673438825723,1.55847629,1335.0,1334.9,30.70218576]
[1673438826041,1.55847629,1335.0,1334.9,31.82344565]
[1673438826244,1.55847629,1335.0,1334.9,30.70218576]
[1673438826461,1.55847629,1335.0,1334.9,31.82343412]
[1673438826930,1.55847629,1335.0,1334.9,30.70218576]
[1673438827300,1.55847629,1335.0,1334.9,31.82345065]
[1673438827540,1.55847629,1335.0,1334.9,30.14973505]
[1673438828035,1.55847629,1335.0,1334.9,7.67623505]
[1673438828261,1.55847629,1335.0,1334.9,3.76671125]
[1673438828488,1.55847629,1335.0,1334.9,3.69271125]
[1673438828706,9.04910629,1335.0,1334.9,1.83409528]
[1673438828925,9.04910629,1335.0,1334.9,0.12398478]
[1673438829290,1.55847629,1335.0,1334.9,0.12398478]
[1673438829663,21.03273629,1335.0,1334.9,0.12398478]
[1673438829878,21.26273629,1335.0,1334.9,0.12398478]
[1673438830394,13.77210629,1335.0,1334.9,0.12398478]
[1673438832562,14.27804576,1335.0,1334.9,1.98280568]
[1673438832779,14.27604576,1335.0,1334.9,1.98280568]
[1673438834597,15.39820549,1335.0,1334.9,1.98280568]
[1673438835397,7.90757549,1335.0,1334.9,1.98280568]
[1673438835601,6.78541576,1335.0,1334.9,1.98280568]
[1673438835811,14.27604576,1335.0,1334.9,1.98280568]
[1673438836021,6.78541576,1335.0,1334.9,1.98280568]
[1673438836484,14.27604576,1335.0,1334.9,1.98280568]
[1673438837926,15.39820549,1335.0,1334.9,1.98280568]
[1673438839228,14.27604576,1335.0,1334.9,1.98280568]
[1673438840151,15.39820549,1335.0,1334.9,1.98280568]
[1673438841702,7.90757549,1335.0,1334.9,1.98280568]
[1673438842646,15.39820549,1335.0,1334.9,1.98280568]
[1673438843489,6.78541576,1335.0,1334.9,1.98280568]
[1673438844791,15.39820549,1335.0,1334.9,1.98280568]
[1673438845161,7.90757549,1335.0,1334.9,1.98280568]
[1673438845372,6.78541576,1335.0,1334.9,1.98280568]
[1673438845665,6.78741576,1335.0,1334.9,1.98280568]
[1673438845852,7.90757549,1335.0,1334.9,1.98280568]
[1673438846003,15.39820549,1335.0,1334.9,1.98280568]
[1673438846365,6.78541576,1335.0,1334.9,1.98280568]
[1673438846577,7.90757549,1335.0,1334.9,1.98280568]
[1673438848347,6.55541576,1335.0,1334.9,2.31348968]
[1673438850136,15.16820549,1335.0,1334.9,2.31348968]
[1673438850527,7.67757549,1335.0,1334.9,1.98280568]
[1673438851627,0.07994896,1335.0,1334.9,5.33452128]
[1673438851834,0.07994896,1335.0,1334.9,20.39090128]
[1673438852165,0.07994896,1335.0,1334.9,27.88209128]
[1673438852305,0.07994896,1335.0,1334.9,29.00436411]
[1673438852980,0.07994896,1335.0,1334.9,32.64492977]
[1673438853233,0.07994896,1335.0,1334.9,31.52265694]
[1673438854416,0.07994896,1335.0,1334.9,32.64466329]
[1673438855250,0.07994896,1335.0,1334.9,31.52265694]
[1673438855476,0.07994896,1335.0,1334.9,33.75582111]
[1673438855685,0.07994896,1335.0,1334.9,31.52265694]
[1673438856114,0.07994896,1335.0,1334.9,34.31091585]
[1673438856686,0.07994896,1335.0,1334.9,35.43271739]
[1673438857192,0.07994896,1335.0,1334.9,32.64445848]
[1673438857351,0.07994896,1335.0,1334.9,35.43271739]